[Event "Early-Titled-Tuesday-Blitz-March-26-2024"]
[Site "Chess.com"]
[Date "2024.03.26"]
[Round "4"]
[White "imdvb6307"]
[Black "wqws"]
[Result "0-1"]
[WhiteElo "2512"]
[BlackElo "2724"]
[TimeControl "180+1"]
[EndTime "8:39:33 PDT"]
[Termination "wqws won on time"]

1. d4 {[%clk 0:02:07.2]} 1... Nf6 {[%clk 0:02:59.8]} 2. Nf3 {[%clk 0:02:06.2]}
2... g6 {[%clk 0:03:00.1]} 3. c4 {[%clk 0:02:05.8]} 3... Bg7 {[%clk 0:03:00.8]}
4. Nc3 {[%clk 0:02:06]} 4... O-O {[%clk 0:03:01.5]} 5. e4 {[%clk 0:02:05.1]}
5... d6 {[%clk 0:03:02.1]} 6. Be2 {[%clk 0:02:05.4]} 6... e5 {[%clk 0:03:02.5]}
7. dxe5 {[%clk 0:02:05.9]} 7... dxe5 {[%clk 0:03:02.7]} 8. Qxd8 {[%clk
0:02:06.4]} 8... Rxd8 {[%clk 0:03:02.7]} 9. Nd5 {[%clk 0:02:06.4]} 9... Nxd5
{[%clk 0:03:01.5]} 10. cxd5 {[%clk 0:02:06.8]} 10... c6 {[%clk 0:03:01.9]} 11.
Bc4 {[%clk 0:02:06.4]} 11... cxd5 {[%clk 0:02:59.8]} 12. Bxd5 {[%clk 0:02:06.8]}
12... Nc6 {[%clk 0:02:59.9]} 13. Bg5 {[%clk 0:01:30.7]} 13... Rd6 {[%clk
0:02:54.5]} 14. O-O-O {[%clk 0:01:30.5]} 14... Be6 {[%clk 0:02:51.9]} 15. Bxe6
{[%clk 0:01:30.5]} 15... Rxe6 {[%clk 0:02:50.7]} 16. Rd7 {[%clk 0:01:24.6]}
16... Rc8 {[%clk 0:02:42.4]} 17. Kb1 {[%clk 0:01:24.4]} 17... h6 {[%clk
0:02:39.3]} 18. Bd2 {[%clk 0:01:24]} 18... Re7 {[%clk 0:02:14.5]} 19. Rxe7
{[%clk 0:01:21.7]} 19... Nxe7 {[%clk 0:02:15.4]} 20. Bc3 {[%clk 0:01:22.1]}
20... Nc6 {[%clk 0:02:07.4]} 21. Rd1 {[%clk 0:01:21.7]} 21... Kf8 {[%clk
0:02:06]} 22. Rd7 {[%clk 0:01:20.3]} 22... Rb8 {[%clk 0:02:05.4]} 23. Nd2 {[%clk
0:01:03]} 23... Ke8 {[%clk 0:02:05]} 24. Rc7 {[%clk 0:01:02.2]} 24... Bf8 {[%clk
0:01:29.8]} 25. Nc4 {[%clk 0:01:01.4]} 25... f6 {[%clk 0:01:28.4]} 26. Rh7
{[%clk 0:00:49.8]} 26... h5 {[%clk 0:01:27.5]} 27. Ne3 {[%clk 0:00:37.7]} 27...
Ne7 {[%clk 0:01:15]} 28. Bb4 {[%clk 0:00:33.6]} 28... Rd8 {[%clk 0:01:11.2]} 29.
Bxe7 {[%clk 0:00:32.9]} 29... Bxe7 {[%clk 0:01:11.4]} 30. Nd5 {[%clk 0:00:32.7]}
30... Rd7 {[%clk 0:01:10.2]} 31. Rg7 {[%clk 0:00:13.6]} 31... g5 {[%clk
0:01:05.9]} 32. Rh7 {[%clk 0:00:13.6]} 32... Bd8 {[%clk 0:01:05.7]} 33. Rh8+
{[%clk 0:00:12.6]} 33... Kf7 {[%clk 0:01:05.6]} 34. Rh7+ {[%clk 0:00:12]} 34...
Ke6 {[%clk 0:01:04.6]} 35. Rxh5 {[%clk 0:00:12]} 35... Bb6 {[%clk 0:01:02.7]}
36. f3 {[%clk 0:00:12.1]} 36... Rf7 {[%clk 0:00:52.7]} 37. Rh6 {[%clk
0:00:11.9]} 37... Bg1 {[%clk 0:00:51.4]} 38. h4 {[%clk 0:00:11.1]} 38... gxh4
{[%clk 0:00:50.5]} 39. Rxh4 {[%clk 0:00:11.3]} 39... f5 {[%clk 0:00:45.1]} 40.
Rh6+ {[%clk 0:00:11.1]} 40... Kd7 {[%clk 0:00:45.3]} 41. exf5 {[%clk 0:00:09]}
41... Rxf5 {[%clk 0:00:44.9]} 42. Nf6+ {[%clk 0:00:08.4]} 42... Kc7 {[%clk
0:00:43.7]} 43. Ne4 {[%clk 0:00:08.5]} 43... Bd4 {[%clk 0:00:41.4]} 44. b3
{[%clk 0:00:08.4]} 44... Rf8 {[%clk 0:00:38.4]} 45. Rh7+ {[%clk 0:00:08.4]}
45... Kc6 {[%clk 0:00:38.4]} 46. Kc2 {[%clk 0:00:08]} 46... Rc8 {[%clk
0:00:36.8]} 47. Kd3 {[%clk 0:00:07.7]} 47... Kb6 {[%clk 0:00:36.4]} 48. g4
{[%clk 0:00:07.3]} 48... Rc1 {[%clk 0:00:36.2]} 49. Rh2 {[%clk 0:00:07.4]} 49...
Rf1 {[%clk 0:00:34.7]} 50. Nd2 {[%clk 0:00:07.5]} 50... Ra1 {[%clk 0:00:32.4]}
51. Nc4+ {[%clk 0:00:06.8]} 51... Kc5 {[%clk 0:00:32.9]} 52. g5 {[%clk 0:00:07]}
52... b5 {[%clk 0:00:32.9]} 53. Nd2 {[%clk 0:00:06.5]} 53... Rg1 {[%clk
0:00:31.2]} 54. Ne4+ {[%clk 0:00:04.3]} 54... Kb4 {[%clk 0:00:31.6]} 55. Rh7
{[%clk 0:00:04.1]} 55... a5 {[%clk 0:00:30.9]} 56. Rb7 {[%clk 0:00:03.9]} 56...
Rg2 {[%clk 0:00:26]} 57. a3+ {[%clk 0:00:03.6]} 57... Kxb3 {[%clk 0:00:22.2]}
58. Rxb5+ {[%clk 0:00:03.7]} 58... Ka4 {[%clk 0:00:22.7]} 59. Rd5 {[%clk
0:00:03.4]} 59... Bb2 {[%clk 0:00:20.3]} 60. Rd6 {[%clk 0:00:01.9]} 60... Bxa3
{[%clk 0:00:20]} 61. Ra6 {[%clk 0:00:02.2]} 61... Kb5 {[%clk 0:00:19.2]} 62. Re6
{[%clk 0:00:01.3]} 62... Bb2 {[%clk 0:00:19.1]} 63. g6 {[%clk 0:00:01.7]} 63...
a4 {[%clk 0:00:19.1]} 64. Nd6+ {[%clk 0:00:01]} 64... Kb4 {[%clk 0:00:18.7]} 65.
Nf5 {[%clk 0:00:01.1]} 65... a3 {[%clk 0:00:18.7]} 66. g7 {[%clk 0:00:01.6]}
66... a2 {[%clk 0:00:18.7]} 67. Rb6+ {[%clk 0:00:01.5]} 67... Ka3 {[%clk
0:00:18.7]} 68. Ra6+ {[%clk 0:00:01.6]} 68... Kb3 {[%clk 0:00:19.2]} 69. Ne3
{[%clk 0:00:01.4]} 69... Rxg7 {[%clk 0:00:17.7]} 70. Rb6+ {[%clk 0:00:01]} 70...
Ka3 {[%clk 0:00:17.7]} 71. Ra6+ {[%clk 0:00:01.5]} 71... Kb4 {[%clk 0:00:17.8]}
72. Rb6+ {[%clk 0:00:01.2]} 72... Kc5 {[%clk 0:00:17.9]} 0-1

[Event "Early-Titled-Tuesday-Blitz-March-26-2024"]
[Site "Chess.com"]
[Date "2024.03.26"]
[Round "4"]
[White "Shahdad2007"]
[Black "artin10862"]
[Result "0-1"]
[WhiteElo "2612"]
[BlackElo "2898"]
[TimeControl "180+1"]
[EndTime "8:39:34 PDT"]
[Termination "artin10862 won by resignation"]

1. b3 {[%clk 0:03:00.9]} 1... a5 {[%clk 0:02:50.8]} 2. a3 {[%clk 0:02:58.5]}
2... d5 {[%clk 0:02:48.5]} 3. Bb2 {[%clk 0:02:55.7]} 3... Nf6 {[%clk 0:02:46.5]}
4. Nf3 {[%clk 0:02:54.5]} 4... Bf5 {[%clk 0:02:46.6]} 5. d3 {[%clk 0:02:52.7]}
5... h6 {[%clk 0:02:46.2]} 6. g3 {[%clk 0:02:51.8]} 6... e6 {[%clk 0:02:46.1]}
7. Bg2 {[%clk 0:02:52.2]} 7... Be7 {[%clk 0:02:46.3]} 8. O-O {[%clk 0:02:52.3]}
8... O-O {[%clk 0:02:46.9]} 9. Nbd2 {[%clk 0:02:53]} 9... Bh7 {[%clk 0:02:45.9]}
10. Re1 {[%clk 0:02:52.9]} 10... c5 {[%clk 0:02:43]} 11. e4 {[%clk 0:02:52.5]}
11... a4 {[%clk 0:02:42.5]} 12. bxa4 {[%clk 0:02:45.3]} 12... Nc6 {[%clk
0:02:42.3]} 13. c4 {[%clk 0:02:46]} 13... d4 {[%clk 0:02:15.2]} 14. Rb1 {[%clk
0:02:33.6]} 14... Nd7 {[%clk 0:02:14.9]} 15. Rf1 {[%clk 0:02:15.3]} 15... Nb6
{[%clk 0:02:04.4]} 16. Ba1 {[%clk 0:02:15.2]} 16... Qc7 {[%clk 0:02:01.6]} 17.
Ne1 {[%clk 0:02:11.1]} 17... Nxa4 {[%clk 0:02:01]} 18. Qc2 {[%clk 0:02:09.1]}
18... f6 {[%clk 0:01:34.4]} 19. f4 {[%clk 0:02:08]} 19... Bg6 {[%clk 0:01:33.4]}
20. f5 {[%clk 0:02:04.1]} 20... Bf7 {[%clk 0:01:32.8]} 21. Nef3 {[%clk
0:01:58.7]} 21... Rfb8 {[%clk 0:01:28.6]} 22. fxe6 {[%clk 0:01:53.1]} 22... Bxe6
{[%clk 0:01:28.4]} 23. Nh4 {[%clk 0:01:54]} 23... Nc3 {[%clk 0:01:20.7]} 24.
Bxc3 {[%clk 0:01:49.8]} 24... dxc3 {[%clk 0:01:21.6]} 25. Qxc3 {[%clk
0:01:49.3]} 25... Bd6 {[%clk 0:01:16.1]} 26. Ndf3 {[%clk 0:01:46.5]} 26... Ne5
{[%clk 0:01:08.4]} 27. Nf5 {[%clk 0:01:44.9]} 27... Nxf3+ {[%clk 0:01:07.8]} 28.
Bxf3 {[%clk 0:01:44]} 28... Be5 {[%clk 0:01:08.7]} 29. Qc1 {[%clk 0:01:38]}
29... Rd8 {[%clk 0:01:02.9]} 30. Be2 {[%clk 0:01:33.4]} 30... Ra6 {[%clk
0:01:00]} 31. Rb3 {[%clk 0:01:25.8]} 31... Rda8 {[%clk 0:00:57.8]} 32. Bg4
{[%clk 0:01:20.8]} 32... Bf7 {[%clk 0:00:56.9]} 33. Kg2 {[%clk 0:01:05]} 33...
Ra5 {[%clk 0:00:39.4]} 34. Ne3 {[%clk 0:00:57.1]} 34... h5 {[%clk 0:00:27.4]}
35. Bf5 {[%clk 0:00:52.3]} 35... g6 {[%clk 0:00:24.8]} 36. Bh3 {[%clk
0:00:51.6]} 36... Kg7 {[%clk 0:00:24.9]} 37. Nd5 {[%clk 0:00:43.8]} 37... Qc6
{[%clk 0:00:24.4]} 38. Rb6 {[%clk 0:00:39.2]} 38... Bxd5 {[%clk 0:00:24.3]} 39.
Rxc6 {[%clk 0:00:37.5]} 39... Bxc6 {[%clk 0:00:25.2]} 40. Be6 {[%clk 0:00:32.9]}
40... Rxa3 {[%clk 0:00:23.9]} 41. Bd5 {[%clk 0:00:32.8]} 41... Rxd3 {[%clk
0:00:23.3]} 42. Bxc6 {[%clk 0:00:30]} 42... bxc6 {[%clk 0:00:24.2]} 43. Qb1
{[%clk 0:00:29.7]} 43... Rd7 {[%clk 0:00:20.4]} 44. Qb6 {[%clk 0:00:26.6]} 44...
Ra2+ {[%clk 0:00:16.4]} 45. Rf2 {[%clk 0:00:25.9]} 45... Rxf2+ {[%clk
0:00:16.3]} 46. Kxf2 {[%clk 0:00:26.8]} 46... Bd4+ {[%clk 0:00:16.4]} 47. Kf3
{[%clk 0:00:26.2]} 47... Re7 {[%clk 0:00:15.7]} 48. Qxc6 {[%clk 0:00:26.1]}
48... Kh6 {[%clk 0:00:16.2]} 49. h3 {[%clk 0:00:23.3]} 49... Kg7 {[%clk
0:00:15.8]} 50. Qa8 {[%clk 0:00:22.5]} 50... Be5 {[%clk 0:00:14.9]} 51. g4
{[%clk 0:00:22.3]} 51... hxg4+ {[%clk 0:00:12.2]} 52. hxg4 {[%clk 0:00:21.3]}
52... Rd7 {[%clk 0:00:12.9]} 53. Qe8 {[%clk 0:00:19.3]} 53... Rd3+ {[%clk
0:00:12.5]} 54. Ke2 {[%clk 0:00:19.9]} 54... Rg3 {[%clk 0:00:12.6]} 55. Qe6
{[%clk 0:00:19.7]} 55... Kh6 {[%clk 0:00:12.4]} 56. Kf2 {[%clk 0:00:19.1]} 56...
Kg5 {[%clk 0:00:12.6]} 57. Qxe5+ {[%clk 0:00:13.8]} 57... fxe5 {[%clk
0:00:11.1]} 58. Kxg3 {[%clk 0:00:14]} 58... Kf6 {[%clk 0:00:11.6]} 59. Kh4
{[%clk 0:00:13.2]} 59... Kf7 {[%clk 0:00:07.6]} 60. Kg3 {[%clk 0:00:07]} 60...
Ke7 {[%clk 0:00:07.2]} 61. Kh3 {[%clk 0:00:04.6]} 61... g5 {[%clk 0:00:05.9]}
62. Kg3 {[%clk 0:00:04.6]} 62... Kd7 {[%clk 0:00:06.8]} 63. Kf3 {[%clk
0:00:05.2]} 63... Kc7 {[%clk 0:00:07.7]} 64. Ke3 {[%clk 0:00:05.8]} 64... Kb6
{[%clk 0:00:08.6]} 65. Kd3 {[%clk 0:00:04.8]} 65... Ka5 {[%clk 0:00:09.5]} 66.
Kc3 {[%clk 0:00:04.2]} 66... Ka4 {[%clk 0:00:10.4]} 67. Kc2 {[%clk 0:00:02.3]}
67... Kb4 {[%clk 0:00:10.2]} 68. Kd3 {[%clk 0:00:02.3]} 68... Kb3 {[%clk
0:00:10.6]} 69. Kd2 {[%clk 0:00:03]} 69... Kxc4 {[%clk 0:00:11.5]} 0-1

[Event "Early-Titled-Tuesday-Blitz-March-26-2024"]
[Site "Chess.com"]
[Date "2024.03.26"]
[Round "4"]
[White "Zohid6"]
[Black "Titus369"]
[Result "1/2-1/2"]
[WhiteElo "2912"]
[BlackElo "2631"]
[TimeControl "180+1"]
[EndTime "8:39:36 PDT"]
[Termination "Game drawn - insufficient material"]

1. e4 {[%clk 0:03:00.9]} 1... c5 {[%clk 0:02:49.2]} 2. Nf3 {[%clk 0:03:00.4]}
2... d6 {[%clk 0:02:49.3]} 3. d4 {[%clk 0:02:59.8]} 3... cxd4 {[%clk 0:02:50.2]}
4. Nxd4 {[%clk 0:03:00.5]} 4... Nf6 {[%clk 0:02:50.9]} 5. Nc3 {[%clk 0:03:00.9]}
5... a6 {[%clk 0:02:51.5]} 6. h3 {[%clk 0:03:01.2]} 6... e6 {[%clk 0:02:51]} 7.
g4 {[%clk 0:03:00.6]} 7... d5 {[%clk 0:02:50.8]} 8. Bg2 {[%clk 0:02:58.8]} 8...
Bb4 {[%clk 0:02:47.1]} 9. O-O {[%clk 0:02:48.9]} 9... Bxc3 {[%clk 0:02:32.7]}
10. bxc3 {[%clk 0:02:49.8]} 10... Nxe4 {[%clk 0:02:33.3]} 11. Ba3 {[%clk
0:02:33.4]} 11... Nxc3 {[%clk 0:02:10.5]} 12. Qd3 {[%clk 0:02:32.9]} 12... Nb5
{[%clk 0:02:04.9]} 13. Nxb5 {[%clk 0:02:17.6]} 13... axb5 {[%clk 0:02:05.8]} 14.
Rfe1 {[%clk 0:02:15.4]} 14... Nc6 {[%clk 0:01:21.2]} 15. Bxd5 {[%clk 0:02:09.1]}
15... Ne7 {[%clk 0:01:20.1]} 16. Bxe7 {[%clk 0:01:59.8]} 16... Qxe7 {[%clk
0:01:18.4]} 17. Qxb5+ {[%clk 0:01:57.8]} 17... Qd7 {[%clk 0:01:13.1]} 18. Qc5
{[%clk 0:01:56.3]} 18... Qe7 {[%clk 0:01:00.8]} 19. Qb5+ {[%clk 0:01:33.6]}
19... Qd7 {[%clk 0:00:59.3]} 20. Qb3 {[%clk 0:01:23.2]} 20... O-O {[%clk
0:00:55.8]} 21. Bg2 {[%clk 0:01:23.6]} 21... Qc7 {[%clk 0:00:51.1]} 22. Rad1
{[%clk 0:01:23.7]} 22... Ra5 {[%clk 0:00:48.2]} 23. Rd2 {[%clk 0:01:18.1]} 23...
Rc5 {[%clk 0:00:46.9]} 24. Red1 {[%clk 0:01:18.1]} 24... h6 {[%clk 0:00:45.5]}
25. a4 {[%clk 0:01:05.3]} 25... Rc3 {[%clk 0:00:44.6]} 26. Qb2 {[%clk 0:00:59]}
26... Rc4 {[%clk 0:00:41.8]} 27. Qa2 {[%clk 0:00:55.7]} 27... b6 {[%clk
0:00:36.8]} 28. Qb3 {[%clk 0:00:53.1]} 28... Rc3 {[%clk 0:00:36.1]} 29. Qb2
{[%clk 0:00:50.8]} 29... Rc4 {[%clk 0:00:35.9]} 30. Qa2 {[%clk 0:00:37.4]} 30...
Rc5 {[%clk 0:00:25.5]} 31. Rb1 {[%clk 0:00:28.3]} 31... h5 {[%clk 0:00:23.7]}
32. gxh5 {[%clk 0:00:27.5]} 32... Rxh5 {[%clk 0:00:23.9]} 33. Qb2 {[%clk
0:00:27]} 33... Rh4 {[%clk 0:00:20.5]} 34. Qxb6 {[%clk 0:00:23.9]} 34... Qxb6
{[%clk 0:00:20.3]} 35. Rxb6 {[%clk 0:00:24.8]} 35... Rxa4 {[%clk 0:00:20.8]} 36.
Rdd6 {[%clk 0:00:24.9]} 36... e5 {[%clk 0:00:18.8]} 37. Rb5 {[%clk 0:00:22.4]}
37... Rc4 {[%clk 0:00:17.2]} 38. Rxe5 {[%clk 0:00:22]} 38... Rxc2 {[%clk
0:00:17.3]} 39. Re1 {[%clk 0:00:17.3]} 39... Be6 {[%clk 0:00:17.1]} 40. Rd3
{[%clk 0:00:16.7]} 40... Rc5 {[%clk 0:00:16.9]} 41. Rg3 {[%clk 0:00:16.6]} 41...
Rd8 {[%clk 0:00:15.2]} 42. Rge3 {[%clk 0:00:13.9]} 42... Kf8 {[%clk 0:00:15.3]}
43. R3e2 {[%clk 0:00:13.5]} 43... Rdc8 {[%clk 0:00:15.1]} 44. Kh2 {[%clk
0:00:13.8]} 44... Rc1 {[%clk 0:00:15.2]} 45. Rxc1 {[%clk 0:00:13.3]} 45... Rxc1
{[%clk 0:00:16.1]} 46. Kg3 {[%clk 0:00:13.7]} 46... Rc3+ {[%clk 0:00:16.3]} 47.
Kh2 {[%clk 0:00:13.4]} 47... Rc5 {[%clk 0:00:16]} 48. Rb2 {[%clk 0:00:13.3]}
48... Ke7 {[%clk 0:00:16.2]} 49. h4 {[%clk 0:00:11.7]} 49... Kf6 {[%clk
0:00:16.3]} 50. Kg3 {[%clk 0:00:11.9]} 50... Rc3+ {[%clk 0:00:16.7]} 51. f3
{[%clk 0:00:11.9]} 51... g6 {[%clk 0:00:16.9]} 52. Rb6 {[%clk 0:00:11.6]} 52...
Rc4 {[%clk 0:00:16.9]} 53. Bh3 {[%clk 0:00:11.7]} 53... Rc5 {[%clk 0:00:14.9]}
54. Bg4 {[%clk 0:00:11.7]} 54... Re5 {[%clk 0:00:14.5]} 55. Kf4 {[%clk 0:00:11]}
55... Re1 {[%clk 0:00:14.4]} 56. Ra6 {[%clk 0:00:10.3]} 56... Re2 {[%clk
0:00:13.3]} 57. Kg3 {[%clk 0:00:08.6]} 57... Re5 {[%clk 0:00:09.7]} 58. Bxe6
{[%clk 0:00:06.6]} 58... Rxe6 {[%clk 0:00:10.6]} 59. Ra4 {[%clk 0:00:06.9]}
59... Kg7 {[%clk 0:00:10.8]} 60. Kg4 {[%clk 0:00:07.2]} 60... Re5 {[%clk
0:00:10.8]} 61. Ra1 {[%clk 0:00:05.5]} 61... Rf5 {[%clk 0:00:11]} 62. Rg1 {[%clk
0:00:05.9]} 62... Rf6 {[%clk 0:00:11.5]} 63. f4 {[%clk 0:00:06.3]} 63... Kh6
{[%clk 0:00:12]} 64. Re1 {[%clk 0:00:06.4]} 64... Rf5 {[%clk 0:00:11.8]} 65. Re5
{[%clk 0:00:06.1]} 65... Rxe5 {[%clk 0:00:09]} 66. fxe5 {[%clk 0:00:07]} 66...
Kh7 {[%clk 0:00:08.7]} 67. Kf4 {[%clk 0:00:07.1]} 67... Kg8 {[%clk 0:00:08.5]}
68. Kg4 {[%clk 0:00:05.6]} 68... Kf8 {[%clk 0:00:08.8]} 69. Kg5 {[%clk
0:00:05.4]} 69... Ke7 {[%clk 0:00:07.3]} 70. Kh6 {[%clk 0:00:05.7]} 70... Ke6
{[%clk 0:00:05.9]} 71. Kg7 {[%clk 0:00:04.8]} 71... Kxe5 {[%clk 0:00:05.4]} 72.
Kxf7 {[%clk 0:00:05.1]} 72... Kf5 {[%clk 0:00:05.9]} 73. Kg7 {[%clk 0:00:05.4]}
73... Kg4 {[%clk 0:00:06.2]} 74. Kxg6 {[%clk 0:00:03.7]} 74... Kxh4 {[%clk
0:00:06.4]} 1/2-1/2

[Event "Early-Titled-Tuesday-Blitz-March-26-2024"]
[Site "Chess.com"]
[Date "2024.03.26"]
[Round "4"]
[White "esrosenberg"]
[Black "LeoWin2012"]
[Result "1-0"]
[WhiteElo "2479"]
[BlackElo "2296"]
[TimeControl "180+1"]
[EndTime "8:39:49 PDT"]
[Termination "esrosenberg won by checkmate"]

1. d4 {[%clk 0:03:00.9]} 1... Nf6 {[%clk 0:02:58.2]} 2. c4 {[%clk 0:03:01.4]}
2... e6 {[%clk 0:02:58.3]} 3. Nc3 {[%clk 0:03:01.8]} 3... Bb4 {[%clk 0:02:58.6]}
4. Nf3 {[%clk 0:03:02.4]} 4... c5 {[%clk 0:02:57.2]} 5. g3 {[%clk 0:03:02]} 5...
O-O {[%clk 0:02:56.6]} 6. Bg2 {[%clk 0:03:01.9]} 6... cxd4 {[%clk 0:02:56.7]} 7.
Nxd4 {[%clk 0:03:01.7]} 7... Nc6 {[%clk 0:02:55.5]} 8. O-O {[%clk 0:03:01.5]}
8... a6 {[%clk 0:02:42.7]} 9. Nxc6 {[%clk 0:02:41.8]} 9... bxc6 {[%clk
0:02:38.7]} 10. Bg5 {[%clk 0:02:31.8]} 10... d5 {[%clk 0:02:30.3]} 11. cxd5
{[%clk 0:02:29.9]} 11... exd5 {[%clk 0:02:11.2]} 12. Rc1 {[%clk 0:02:23.2]}
12... h6 {[%clk 0:02:09.8]} 13. Bf4 {[%clk 0:02:16]} 13... Bf5 {[%clk
0:01:51.4]} 14. Qa4 {[%clk 0:02:09]} 14... Qb6 {[%clk 0:01:30.3]} 15. a3 {[%clk
0:01:31.1]} 15... Be7 {[%clk 0:01:21.7]} 16. b4 {[%clk 0:01:23]} 16... Rfc8
{[%clk 0:00:51.9]} 17. Qb3 {[%clk 0:01:19]} 17... d4 {[%clk 0:00:48]} 18. Na4
{[%clk 0:01:17.6]} 18... Qb7 {[%clk 0:00:42.1]} 19. Nc5 {[%clk 0:01:13.3]} 19...
Bxc5 {[%clk 0:00:40.8]} 20. Rxc5 {[%clk 0:01:12.9]} 20... Be6 {[%clk 0:00:37.1]}
21. Qd3 {[%clk 0:01:05.9]} 21... Bd5 {[%clk 0:00:33.2]} 22. Qxd4 {[%clk
0:01:03.5]} 22... Bxg2 {[%clk 0:00:29.4]} 23. Kxg2 {[%clk 0:01:03.2]} 23... Nd5
{[%clk 0:00:29.5]} 24. Rfc1 {[%clk 0:00:56.2]} 24... Qd7 {[%clk 0:00:19.8]} 25.
Kg1 {[%clk 0:00:43.3]} 25... Qe6 {[%clk 0:00:14.2]} 26. Be3 {[%clk 0:00:33.6]}
26... Nxe3 {[%clk 0:00:11.5]} 27. Qxe3 {[%clk 0:00:33.7]} 27... Qxe3 {[%clk
0:00:08.9]} 28. fxe3 {[%clk 0:00:34.6]} 28... Re8 {[%clk 0:00:09.2]} 29. Kf2
{[%clk 0:00:32.1]} 29... Re7 {[%clk 0:00:08.9]} 30. Rxc6 {[%clk 0:00:31.9]}
30... Rae8 {[%clk 0:00:08.6]} 31. R1c3 {[%clk 0:00:32.5]} 31... Ra7 {[%clk
0:00:07.4]} 32. Rc7 {[%clk 0:00:28.4]} 32... Raa8 {[%clk 0:00:05.7]} 33. Rd3
{[%clk 0:00:24.2]} 33... Re6 {[%clk 0:00:05.3]} 34. Rc4 {[%clk 0:00:18.7]} 34...
Rae8 {[%clk 0:00:04.2]} 35. a4 {[%clk 0:00:18.1]} 35... g5 {[%clk 0:00:04.1]}
36. b5 {[%clk 0:00:17.6]} 36... Rf6+ {[%clk 0:00:04.3]} 37. Kg2 {[%clk
0:00:16.6]} 37... axb5 {[%clk 0:00:03.8]} 38. axb5 {[%clk 0:00:16.6]} 38... Rfe6
{[%clk 0:00:04.4]} 39. e4 {[%clk 0:00:14.6]} 39... Rxe4 {[%clk 0:00:04.3]} 40.
Rxe4 {[%clk 0:00:15.1]} 40... Rxe4 {[%clk 0:00:05]} 41. Kf3 {[%clk 0:00:15.8]}
41... Rb4 {[%clk 0:00:05.3]} 42. Rd5 {[%clk 0:00:15.8]} 42... Kg7 {[%clk
0:00:04.7]} 43. h3 {[%clk 0:00:14.1]} 43... Kg6 {[%clk 0:00:04.9]} 44. g4 {[%clk
0:00:13.9]} 44... Rb3+ {[%clk 0:00:04.8]} 45. e3 {[%clk 0:00:13.8]} 45... f6
{[%clk 0:00:05]} 46. Ke4 {[%clk 0:00:13.2]} 46... Kg7 {[%clk 0:00:04.5]} 47. Rc5
{[%clk 0:00:11.4]} 47... Kf7 {[%clk 0:00:04.2]} 48. Kd4 {[%clk 0:00:10.1]} 48...
Ke6 {[%clk 0:00:04.5]} 49. e4 {[%clk 0:00:09.3]} 49... Rb4+ {[%clk 0:00:04.3]}
50. Kd3 {[%clk 0:00:08.5]} 50... Rb3+ {[%clk 0:00:04.4]} 51. Kc4 {[%clk
0:00:07.3]} 51... Rxh3 {[%clk 0:00:03.8]} 52. b6 {[%clk 0:00:07.6]} 52... Rh1
{[%clk 0:00:03.8]} 53. Rb5 {[%clk 0:00:07.5]} 53... Rc1+ {[%clk 0:00:04]} 54.
Kd4 {[%clk 0:00:07.4]} 54... Rd1+ {[%clk 0:00:03.9]} 55. Kc5 {[%clk 0:00:06.4]}
55... Rc1+ {[%clk 0:00:03.9]} 56. Kd4 {[%clk 0:00:06.4]} 56... Rc8 {[%clk
0:00:04.5]} 57. b7 {[%clk 0:00:06.5]} 57... Rb8 {[%clk 0:00:05.2]} 58. Kc5
{[%clk 0:00:04.5]} 58... Kd7 {[%clk 0:00:05.6]} 59. Kd5 {[%clk 0:00:04.4]} 59...
Kc7 {[%clk 0:00:01.9]} 60. Ke6 {[%clk 0:00:04.3]} 60... Rxb7 {[%clk 0:00:02.5]}
61. Rxb7+ {[%clk 0:00:04.1]} 61... Kxb7 {[%clk 0:00:03.4]} 62. Kxf6 {[%clk
0:00:04.6]} 62... Kc7 {[%clk 0:00:04]} 63. e5 {[%clk 0:00:03.7]} 63... Kd7
{[%clk 0:00:04.1]} 64. Kf7 {[%clk 0:00:04.3]} 64... Kc6 {[%clk 0:00:04.4]} 65.
e6 {[%clk 0:00:04.7]} 65... h5 {[%clk 0:00:04.9]} 66. gxh5 {[%clk 0:00:05.1]}
66... g4 {[%clk 0:00:05.3]} 67. e7 {[%clk 0:00:05.8]} 67... g3 {[%clk
0:00:05.6]} 68. e8=Q+ {[%clk 0:00:06.3]} 68... Kd6 {[%clk 0:00:06.4]} 69. Qg8
{[%clk 0:00:05.4]} 69... g2 {[%clk 0:00:07.3]} 70. Qxg2 {[%clk 0:00:05.6]} 70...
Ke5 {[%clk 0:00:07]} 71. Qg4 {[%clk 0:00:05.1]} 71... Kd6 {[%clk 0:00:06.5]} 72.
Qf5 {[%clk 0:00:05.2]} 72... Kc6 {[%clk 0:00:06]} 73. Qe5 {[%clk 0:00:05.4]}
73... Kd7 {[%clk 0:00:06.1]} 74. Qe6+ {[%clk 0:00:04.8]} 74... Kc7 {[%clk
0:00:06.4]} 75. Ke7 {[%clk 0:00:04.4]} 75... Kb7 {[%clk 0:00:07.3]} 76. Qd6
{[%clk 0:00:04]} 76... Ka7 {[%clk 0:00:08.2]} 77. Qb4 {[%clk 0:00:03.9]} 77...
Ka6 {[%clk 0:00:07.8]} 78. Kd7 {[%clk 0:00:04.1]} 78... Ka7 {[%clk 0:00:08.5]}
79. Kc7 {[%clk 0:00:04.4]} 79... Ka6 {[%clk 0:00:09.2]} 80. Qb6# {[%clk
0:00:04.8]} 1-0